fUST/lending_fUST_20260621
["ID","MTS","AMOUNT","RATE_DAILY","PERIOD"]
[425964194,1782047438000,-338.13429281,0.000181,2]
[425964203,1782047438000,-185.01240912,0.0001848,2]
[425964192,1782047438000,-530.16,0.00018079,2]
[425964190,1782047438000,-338.13429281,0.000179,2]
[425964188,1782047438000,-3744.73963251,0.00017864,2]
[425964201,1782047438000,-200.92870248,0.00018361,2]
[425964179,1782047438000,-182.77547626,0.00017802,2]
[425964185,1782047438000,-530.16,0.00017805,2]
[425964167,1782047438000,-600.0,0.00017704,2]
[425964170,1782047438000,-296.95155179,0.00017802,2]
[425964172,1782047438000,-200.0,0.00017802,2]
[425964165,1782047438000,-338.13429281,0.000177,2]
[425964174,1782047438000,-157.2310094,0.00017802,2]
[425964177,1782047438000,-166.0,0.00017802,2]
[425964181,1782047438000,-165.0,0.00017802,2]
[425964183,1782047438000,-166.57229177,0.00017802,2]
[425964159,1782047438000,-188.1817873,0.00017518,2]
[425964264,1782047439000,-393.18476939,0.00019251,2]
[425964289,1782047439000,-181.023862,0.00019272,2]
[425964268,1782047439000,-900.74308569,0.00019251,2]
[425964270,1782047439000,-486.10236219,0.00019251,2]
[425964266,1782047439000,-301.34804342,0.00019251,2]
[425964259,1782047439000,-331.32766476,0.00019251,2]
[425964273,1782047439000,-1203.18874641,0.00019251,2]
[425964275,1782047439000,-335.03158816,0.00019251,2]
[425964278,1782047439000,-366.85330388,0.00019251,2]
[425964282,1782047439000,-370.57562877,0.00019251,2]
[425964292,1782047439000,-202.047724,0.00019272,2]
[425964294,1782047439000,-160.0,0.00019272,2]
[425964285,1782047439000,-358.33834481,0.00019251,2]
[425964287,1782047439000,-160.0,0.00019272,2]
[425964296,1782047439000,-457.48502,0.00019272,2]
[425964299,1782047439000,-754.97004,0.00019272,2]
[425964300,1782047439000,-276.015947,0.00019272,2]
[425964262,1782047439000,-364.01342458,0.00019251,2]
[425964280,1782047439000,-372.33107198,0.00019251,2]
[425964257,1782047439000,-341.22365844,0.00019251,2]
[425964231,1782047439000,-186.16553599,0.0001848,2]
[425964252,1782047439000,-370.02481825,0.00019251,2]
[425964301,1782047439000,-270.231279,0.00019272,2]
[425964212,1782047439000,-182.00671229,0.0001848,2]
[425964214,1782047439000,-196.5923847,0.0001848,2]
[425964219,1782047439000,-450.37154284,0.0001848,2]
[425964217,1782047439000,-150.67402171,0.0001848,2]
[425964221,1782047439000,-243.05118109,0.0001848,2]
[425964224,1782047439000,-601.5943732,0.0001848,2]
[425964226,1782047439000,-167.51579408,0.0001848,2]
[425964255,1782047439000,-348.42841131,0.00019251,2]
[425964228,1782047439000,-183.42665194,0.0001848,2]
[425964235,1782047439000,-179.16917241,0.0001848,2]
[425964237,1782047439000,-574.7,0.00018518,3]
[425964248,1782047439000,-530.16,0.00019175,2]
[425964250,1782047439000,-300.0,0.00019178,2]
[425964239,1782047439000,-530.16,0.00018627,2]
[425964241,1782047439000,-3744.73963251,0.0001867,2]
[425964246,1782047439000,-240.4682505,0.00019172,2]
[425964243,1782047439000,-530.16,0.00018901,2]
[425964233,1782047439000,-185.28781438,0.0001848,2]
[425964304,1782047439000,-160.0,0.0001944,2]
[425964303,1782047439000,-152.90785383,0.00019327,2]
[425964344,1782047439000,-958.0,0.00019991,2]
[425964325,1782047439000,-589.77715409,0.00019765,2]
[425964330,1782047439000,-1804.78311961,0.00019765,2]
[425964329,1782047439000,-729.15354328,0.00019765,2]
[425964331,1782047439000,-502.54738223,0.00019765,2]
[425964333,1782047439000,-163.93145544,0.00019765,2]
[425964334,1782047439000,-558.49660797,0.00019765,2]
[425964332,1782047439000,-550.27995582,0.00019765,2]
[425964335,1782047439000,-220.30365552,0.00019765,2]
[425964328,1782047439000,-165.68334842,0.00019765,2]
[425964336,1782047439000,-555.86344315,0.00019765,2]
[425964337,1782047439000,-537.50751722,0.00019765,2]
[425964339,1782047439000,-355.115096,0.00019868,2]
[425964342,1782047439000,-257.640665,0.00019868,2]
[425964345,1782047439000,-530.16,0.00019997,2]
[425964308,1782047439000,-497.51725646,0.00019475,2]
[425964348,1782047439000,-9752.44450537,0.0002,2]
[425964343,1782047439000,-874.11390633,0.00019986,5]
[425964346,1782047439000,-443.38648221,0.00019999,2]
[425964338,1782047439000,-1010.0,0.000198,3]
[425964347,1782047439000,-159867.26679524,0.0002,2]
[425964326,1782047439000,-452.02206512,0.00019765,2]
[425964324,1782047439000,-546.02013687,0.00019765,2]
[425964307,1782047439000,-530.16,0.00019449,2]
[425964305,1782047439000,-235.720396,0.0001944,2]
[425964306,1782047439000,-311.440793,0.0001944,2]
[425964302,1782047439000,-237.852462,0.00019272,2]
[425964309,1782047439000,-222.48274354,0.00019475,2]
[425964310,1782047439000,-3744.73963251,0.00019476,2]
[425964311,1782047439000,-445.0,0.0001953,2]
[425964315,1782047439000,-363.63636363,0.00019714,2]
[425964323,1782047439000,-496.99149713,0.00019765,2]
[425964318,1782047439000,-316.91831304,0.00019757,2]
[425964312,1782047439000,-173.9086953,0.0001956,2]
[425964314,1782047439000,-222.75421434,0.00019714,2]
[425964313,1782047439000,-666.50084296,0.000196,2]
[425964317,1782047439000,-341.5699031,0.00019757,2]
[425964320,1782047439000,-555.03722737,0.00019765,2]
[425964319,1782047439000,-361.8301654,0.00019757,2]
[425964321,1782047439000,-522.64261697,0.00019765,2]
[425964322,1782047439000,-511.83548766,0.00019765,2]
[425964327,1782047439000,-1351.11462853,0.00019765,2]
[425964316,1782047439000,-530.16,0.00019723,2]
[425964357,1782047440000,-4396.50004988,0.0002,2]
[425964372,1782047443000,-7297.48766017,0.0002,2]
[425964386,1782047446000,-288.87684538,0.0002,2]
[425964387,1782047446000,-2792.18586333,0.0002,2]
[425964385,1782047446000,-8497.76874504,0.0002,2]
[425964436,1782048632000,-1215.08095502,0.00013956,2]
[425964423,1782048632000,-163.44479411,0.000118,7]
[425964417,1782048632000,-2387.95651896,0.00011207,2]
[425964424,1782048632000,-163.44479411,0.00012036,7]
[425964426,1782048632000,-163.44479411,0.0001239,7]
[425964429,1782048632000,-66.50868491,0.00012744,2]
[425964414,1782048632000,-2580.49130645,0.00011207,2]
[425964419,1782048632000,-31.55217459,0.00011207,2]
[425964428,1782048632000,-153.99872121,0.00012744,2]
[425964425,1782048632000,-160.0,0.00012365,2]
[425964427,1782048632000,-163.44479411,0.00012744,7]
[425964430,1782048632000,-282.17308171,0.00013156,2]
[425964437,1782048632000,-305.4205048,0.00013956,2]
[425964434,1782048632000,-1482.61,0.00013956,2]
[425964432,1782048632000,-452.19281701,0.00013817,2]
[425964435,1782048632000,-2219.97516473,0.00013956,2]
[425964431,1782048632000,-163.44479415,0.00013216,7]
[425964433,1782048632000,-333.09545749,0.00013817,2]
[425964421,1782048632000,-193.8806165,0.0001132,2]
[425964493,1782048638000,-500.0,0.0001688,2]
[425964489,1782048638000,-151.5,0.00016779,2]
[425964491,1782048638000,-500.0,0.0001688,2]
[425964475,1782048638000,-18.31175248,0.0001658,2]
[425964481,1782048638000,-500.0,0.00016712,2]
[425964477,1782048638000,-500.0,0.0001658,2]
[425964498,1782048638000,-500.0,0.0001688,2]
[425964485,1782048638000,-151.5,0.00016779,2]
[425964497,1782048638000,-335.05943751,0.0001688,2]
[425964469,1782048638000,-500.0,0.0001658,2]
[425964487,1782048638000,-151.5,0.00016779,2]
[425964466,1782048638000,-116.83015448,0.00016257,2]
[425964462,1782048638000,-291.217,0.00013956,2]
[425964473,1782048638000,-481.68824752,0.0001658,2]
[425964468,1782048638000,-500.0,0.00016438,2]
[425964464,1782048638000,-500.0,0.00015001,2]
[425964467,1782048638000,-331.66120192,0.00016257,2]
[425964471,1782048638000,-500.0,0.0001658,2]
[425964463,1782048638000,-374.68122546,0.00013956,2]
[425964465,1782048638000,-187.47759,0.00015068,2]
[425964495,1782048638000,-500.0,0.0001688,2]
[425964470,1782048638000,-500.0,0.0001658,2]
[425964479,1782048638000,-5337.25814895,0.00016581,2]
[425964503,1782048638000,-500.0,0.0001688,2]
[425964499,1782048638000,-248.96083718,0.0001688,2]
[425964483,1782048638000,-151.5,0.00016779,2]
[425964517,1782048638000,-151.5,0.0001688,2]
[425964514,1782048638000,-500.0,0.0001688,2]
[425964519,1782048638000,-28983.71046421,0.00016956,2]
[425964520,1782048638000,-738.12766339,0.00016956,2]
[425964515,1782048638000,-151.5,0.0001688,2]
[425964513,1782048638000,-151.5,0.0001688,2]
[425964516,1782048638000,-468.024345,0.0001688,2]
[425964511,1782048638000,-407.51506086,0.0001688,2]
[425964508,1782048638000,-500.0,0.0001688,2]
[425964518,1782048638000,-185.50781895,0.0001688,2]
[425964510,1782048638000,-92.48493914,0.0001688,2]
[425964501,1782048638000,-500.0,0.0001688,2]
[425964504,1782048638000,-500.0,0.0001688,2]
[425964521,1782048638000,-983.59412008,0.00016956,2]
[425964502,1782048638000,-500.0,0.0001688,2]
[425964500,1782048638000,-151.5,0.0001688,2]
[425964505,1782048638000,-362.12335287,0.0001688,2]
[425964509,1782048638000,-500.0,0.0001688,2]
[425964507,1782048638000,-500.0,0.0001688,2]
[425964512,1782048638000,-318.38971305,0.0001688,2]
[425964506,1782048638000,-500.0,0.0001688,2]
[425964610,1782048640000,-954.63932051,0.00016956,2]
[425964607,1782048640000,-1688.74295023,0.00016956,2]
[425964616,1782048641000,-5165.18888841,0.00016956,2]
[425964813,1782048643000,-618.87405653,0.00016956,2]
[425964811,1782048643000,-2070.0,0.00016956,2]
[425964816,1782048643000,-768.45055747,0.00016956,2]
[425964835,1782048643000,-17640.16221869,0.00016956,2]
[425964831,1782048643000,-613.29562705,0.00016956,2]
[425964836,1782048643000,-2110.12832696,0.00016956,2]
[425964841,1782048643000,-7379.06770244,0.00016956,2]
[425964833,1782048643000,-3745.2009488,0.00016956,2]
[425964883,1782048646000,-567340.48183563,0.00016956,2]
[425964884,1782048646000,-500.0,0.00016983,2]
[425964885,1782048646000,-500.0,0.00016983,2]
[425964890,1782048646000,-500.0,0.00016983,2]
[425964887,1782048646000,-326.30959889,0.00016983,2]
[425964886,1782048646000,-413.82147096,0.00016983,2]
[425964889,1782048646000,-500.0,0.00016983,2]
[425964888,1782048646000,-500.0,0.00016983,2]
[425964894,1782048646000,-500.0,0.00016983,2]
[425964891,1782048646000,-615.06719166,0.00016983,2]
[425964893,1782048646000,-365.51492437,0.00016983,2]
[425964897,1782048646000,-500.0,0.00016983,2]
[425964895,1782048646000,-500.0,0.00016983,2]
[425964900,1782048646000,-500.0,0.00016983,2]
[425964898,1782048646000,-500.0,0.00016983,2]
[425964896,1782048646000,-500.0,0.00016983,2]
[425964899,1782048646000,-625.31429129,0.00016983,2]
[425964892,1782048646000,-500.0,0.00016983,2]
[425964935,1782048647000,-500.0,0.00017879,2]
[425964941,1782048647000,-178.83441,0.00018153,2]
[425964934,1782048647000,-834.83132135,0.00017839,2]
[425964944,1782048647000,-151.0,0.00018352,2]
[425964939,1782048647000,-500.0,0.00018153,2]
[425964943,1782048647000,-176.0,0.00018274,3]
[425964937,1782048647000,-1904.0,0.00018,2]
[425964938,1782048647000,-500.0,0.00018082,2]
[425964942,1782048647000,-707.6174953,0.00018201,2]
[425964933,1782048647000,-500.0,0.00017808,2]
[425964940,1782048647000,-151.0,0.00018153,2]
[425964932,1782048647000,-600.0,0.00017746,2]
[425964946,1782048647000,-214.578401,0.00018352,2]
[425964945,1782048647000,-214.578401,0.00018352,2]
[425964954,1782048647000,-539.24731998,0.00018437,2]
[425964955,1782048647000,-182.87140853,0.00018437,2]
[425964948,1782048647000,-214.578401,0.00018352,2]
[425964949,1782048647000,-269.878,0.00018356,2]
[425964947,1782048647000,-214.578401,0.00018352,2]
[425964950,1782048647000,-500.0,0.00018427,2]
[425964951,1782048647000,-175.42660403,0.00018427,2]
[425964952,1782048647000,-403.69667386,0.00018437,2]
[425964953,1782048647000,-217.86224051,0.00018437,2]
[425964957,1782048647000,-156.47441057,0.00018437,2]
[425964959,1782048647000,-176.21826483,0.00018437,2]
[425964958,1782048647000,-165.07176156,0.00018437,2]
[425964956,1782048647000,-165.08398674,0.00018437,2]
[425964928,1782048647000,-2566.31685157,0.00017349,2]
[425964960,1782048647000,-166.75903295,0.00018437,2]
[425964927,1782048647000,-500.0,0.00017331,2]
[425964904,1782048647000,-500.0,0.00016983,2]
[425964905,1782048647000,-362.27437068,0.00016983,2]
[425964902,1782048647000,-500.0,0.00016983,2]
[425964903,1782048647000,-500.0,0.00016983,2]
[425964901,1782048647000,-500.0,0.00016983,2]
[425964906,1782048647000,-500.0,0.00016983,2]
[425964909,1782048647000,-500.0,0.00016983,2]
[425964907,1782048647000,-500.0,0.00016983,2]
[425964908,1782048647000,-500.0,0.00016983,2]
[425964913,1782048647000,-500.0,0.00016985,2]
[425964911,1782048647000,-500.0,0.00016985,2]
[425964916,1782048647000,-500.0,0.00016985,2]
[425964915,1782048647000,-500.0,0.00016985,2]
[425964924,1782048647000,-500.0,0.0001726,2]
[425964917,1782048647000,-500.0,0.00016985,2]
[425964918,1782048647000,-500.0,0.00016985,2]
[425964914,1782048647000,-500.0,0.00016985,2]
[425964912,1782048647000,-500.0,0.00016985,2]
[425964920,1782048647000,-500.0,0.00016985,2]
[425964930,1782048647000,-500.0,0.00017534,2]
[425964931,1782048647000,-500.0,0.00017605,2]
[425964922,1782048647000,-500.0,0.00016986,2]
[425964919,1782048647000,-500.0,0.00016985,2]
[425964921,1782048647000,-151.0,0.00016985,2]
[425964925,1782048647000,-160.0,0.00017322,2]
[425964929,1782048647000,-445.0,0.0001735,2]
[425964926,1782048647000,-160.0,0.00017322,2]
[425964923,1782048647000,-500.0,0.00017057,2]
[425964910,1782048647000,-500.0,0.00016985,2]
[425964961,1782048647000,-155.71877768,0.00018437,2]
[425964936,1782048647000,-151.0,0.00017879,2]
[425964962,1782048647000,-152.93023965,0.00018437,2]
[425965007,1782048647000,-160.0,0.00019272,2]
[425964998,1782048647000,-352.43652966,0.00019206,2]
[425964997,1782048647000,-330.14352312,0.00019206,2]
[425964996,1782048647000,-312.94882113,0.00019206,2]
[425965000,1782048647000,-311.43755536,0.00019206,2]
[425965006,1782048647000,-500.0,0.00019249,2]
[425965002,1782048647000,-362.98786383,0.00019206,2]
[425965003,1782048647000,-312.31855777,0.00019206,2]
[425965004,1782048647000,-327.61208213,0.00019206,2]
[425965001,1782048647000,-305.86047929,0.00019206,2]
[425965005,1782048647000,-313.37865225,0.00019239,2]
[425965009,1782048647000,-453.169901,0.00019272,2]
[425965010,1782048647000,-1872.36981625,0.00019391,2]
[425964999,1782048647000,-333.51806589,0.00019206,2]
[425965011,1782048647000,-157.6114129,0.00019508,2]
[425965015,1782048647000,-173.038658,0.000196,2]
[425965016,1782048647000,-215.140354,0.000196,2]
[425965014,1782048647000,-260.529958,0.000196,2]
[425965012,1782048647000,-720.0,0.00019521,2]
[425965013,1782048647000,-500.0,0.00019523,2]
[425965017,1782048647000,-214.578401,0.00019719,2]
[425965018,1782048647000,-214.578401,0.00019719,2]
[425965020,1782048647000,-214.578401,0.00019719,2]
[425965021,1782048647000,-1211.09002157,0.00019719,2]
[425965019,1782048647000,-214.578401,0.00019719,2]
[425965023,1782048647000,-1617.74195994,0.00019719,2]
[425965022,1782048647000,-653.58672152,0.00019719,2]
[425964969,1782048647000,-577.3,0.00018517,3]
[425965008,1782048647000,-306.58495,0.00019272,2]
[425964989,1782048647000,-170.313272,0.00019189,2]
[425964995,1782048647000,-330.16797349,0.00019206,2]
[425964993,1782048647000,-1078.49463996,0.00019206,2]
[425964967,1782048647000,-156.68932612,0.00018468,2]
[425964965,1782048647000,-163.80604106,0.00018437,2]
[425964963,1782048647000,-181.49393192,0.00018437,2]
[425964964,1782048647000,-156.15927889,0.00018437,2]
[425964968,1782048647000,-192.43,0.00018517,3]
[425964966,1782048647000,-251.618297,0.00018437,2]
[425964973,1782048647000,-214.578401,0.00018527,2]
[425964991,1782048647000,-807.39334772,0.00019206,2]
[425964974,1782048647000,-214.578401,0.00018527,2]
[425964971,1782048647000,-151.0,0.00018527,2]
[425964970,1782048647000,-444.02654364,0.00018526,2]
[425964972,1782048647000,-214.578401,0.00018527,2]
[425964977,1782048647000,-214.578401,0.00018527,2]
[425964978,1782048647000,-214.578401,0.00018527,2]
[425964976,1782048647000,-214.578401,0.00018527,2]
[425964975,1782048647000,-214.578401,0.00018527,2]
[425964979,1782048647000,-214.578401,0.00018527,2]
[425964988,1782048647000,-300.0,0.00019178,2]
[425964990,1782048647000,-308.025766,0.00019199,2]
[425964987,1782048647000,-151.0,0.00019175,2]
[425964986,1782048647000,-151.0,0.00019175,2]
[425964983,1782048647000,-500.0,0.00018975,2]
[425964992,1782048647000,-435.72448101,0.00019206,2]
[425964984,1782048647000,-390.794935,0.00019012,2]
[425964985,1782048647000,-214.496471,0.0001916,2]
[425964981,1782048647000,-242.077,0.00018632,2]
[425964982,1782048647000,-500.0,0.00018701,2]
[425964980,1782048647000,-70952.4892949,0.00018527,2]
[425964994,1782048647000,-365.74281707,0.00019206,2]
[425965037,1782048648000,-234.99199205,0.00019733,2]
[425965033,1782048648000,-468.47783666,0.00019719,2]
[425965036,1782048648000,-328.47833418,0.00019733,2]
[425965040,1782048648000,-500.0,0.00019797,2]
[425965034,1782048648000,-491.41812319,0.00019719,2]
[425965032,1782048648000,-544.48179575,0.00019719,2]
[425965029,1782048648000,-500.27709884,0.00019719,2]
[425965026,1782048648000,-469.4232317,0.00019719,2]
[425965027,1782048648000,-495.21528468,0.00019719,2]
[425965024,1782048648000,-548.6142256,0.00019719,2]
[425965025,1782048648000,-495.25196023,0.00019719,2]
[425965028,1782048648000,-528.65479448,0.00019719,2]
[425965038,1782048648000,-470.06797837,0.00019752,2]
[425965030,1782048648000,-467.15633304,0.00019719,2]
[425965042,1782048648000,-512.73414976,0.0001991,2]
[425965053,1782048648000,-190480.34013414,0.0002,2]
[425965031,1782048648000,-458.79071894,0.00019719,2]
[425965043,1782048648000,-73889.8729911,0.0002,2]
[425965041,1782048648000,-384.86,0.00019887,3]
[425965039,1782048648000,-205.350512,0.00019783,2]
[425965048,1782048648000,-456.04411307,0.0002,2]
[425965045,1782048648000,-10637.00033069,0.0002,2]
[425965047,1782048648000,-377.16987476,0.0002,2]
[425965044,1782048648000,-25968.24059298,0.0002,2]
[425965046,1782048648000,-14923.88858073,0.0002,2]
[425965049,1782048648000,-205.76914739,0.0002,2]
[425965051,1782048648000,-162.29770199,0.0002,2]
[425965050,1782048648000,-1000.0,0.0002,2]
[425965052,1782048648000,-75908.90418872,0.0002,2]
[425965054,1782048648000,-1482.61,0.0002,2]
[425965035,1782048648000,-287.41854241,0.00019733,2]
[425965058,1782048818000,-392.21230784,0.00015818,2]
[425965057,1782048818000,-732.8745443,0.00015785,2]
[425965059,1782048838000,1574.91314786,0.00015818,2]
[425965060,1782048839000,-1574.91314786,0.00015818,2]
[425965121,1782049839000,-500.0,0.00016782,2]
[425965118,1782049839000,-500.0,0.00016782,2]
[425965119,1782049839000,-500.0,0.00016782,2]
[425965115,1782049839000,-500.0,0.00016782,2]
[425965114,1782049839000,-500.0,0.0001658,2]
[425965117,1782049839000,-500.0,0.00016782,2]
[425965116,1782049839000,-500.0,0.00016782,2]
[425965110,1782049839000,-500.0,0.00016578,2]
[425965108,1782049839000,-500.0,0.00016578,2]
[425965109,1782049839000,-500.0,0.00016578,2]
[425965112,1782049839000,-500.0,0.00016578,2]
[425965111,1782049839000,-500.0,0.00016578,2]
[425965100,1782049839000,-5000.0,0.00013605,2]
[425965107,1782049839000,-240.494186,0.00016005,2]
[425965105,1782049839000,-373.58604119,0.00015985,2]
[425965106,1782049839000,-10000.0,0.00015986,2]
[425965104,1782049839000,-236.14603237,0.00015985,2]
[425965103,1782049839000,-500.0,0.00015985,2]
[425965101,1782049839000,-957.4095666,0.00015573,2]
[425965102,1782049839000,-1705.3069358,0.00015591,2]
[425965098,1782049839000,-3215.6699939,0.00013334,2]
[425965099,1782049839000,-5000.0,0.00013469,2]
[425965097,1782049839000,-1218.951709,0.00013334,2]
[425965122,1782049839000,-500.0,0.00016782,2]
[425965113,1782049839000,-500.0,0.00016579,2]
[425965120,1782049839000,-500.0,0.00016782,2]
[425965146,1782049839000,-520.17021067,0.00017452,2]
[425965126,1782049839000,-515.82430434,0.00016786,2]
[425965149,1782049839000,-2866.49295455,0.00018052,2]
[425965147,1782049839000,-310.81858055,0.00018051,2]
[425965145,1782049839000,-186.0,0.00017449,2]
[425965148,1782049839000,-48901.83750281,0.00018052,2]
[425965143,1782049839000,-160.0,0.0001742,2]
[425965141,1782049839000,-500.0,0.0001733,2]
[425965139,1782049839000,-392.26487729,0.00017128,2]
[425965142,1782049839000,-160.0,0.0001742,2]
[425965140,1782049839000,-431.70391297,0.00017191,2]
[425965138,1782049839000,-500.0,0.00017056,2]
[425965137,1782049839000,-500.0,0.00017056,2]
[425965144,1782049839000,-445.0,0.00017449,2]
[425965132,1782049839000,-500.0,0.00016853,2]
[425965133,1782049839000,-500.0,0.00016854,2]
[425965124,1782049839000,-500.0,0.00016782,2]
[425965125,1782049839000,-193.662,0.00016786,2]
[425965129,1782049839000,-500.0,0.00016852,2]
[425965127,1782049839000,-500.0,0.00016852,2]
[425965128,1782049839000,-500.0,0.00016852,2]
[425965123,1782049839000,-500.0,0.00016782,2]
[425965130,1782049839000,-500.0,0.00016852,2]
[425965131,1782049839000,-502.95469419,0.00016852,2]
[425965134,1782049839000,-500.0,0.00017056,2]
[425965136,1782049839000,-500.0,0.00017056,2]
[425965135,1782049839000,-500.0,0.00017056,2]
[425965224,1782049841000,-1221.60926296,0.00018052,2]
[425965539,1782049843000,-760.76031702,0.00018052,2]
[425965537,1782049843000,-341.4383689,0.00018052,2]
[425965546,1782049843000,-1902.04860122,0.00018052,2]
[425965541,1782049843000,-396.54944253,0.00018052,2]
[425965544,1782049843000,-7041.03391632,0.00018052,2]
[425965591,1782049844000,-572.22010432,0.00018052,2]
[425965588,1782049844000,-819.30227355,0.00018052,2]
[425965720,1782049846000,-136158.19634139,0.00018052,2]
[425965708,1782049846000,-2230.50268731,0.00017872,2]
[425965710,1782049846000,-1442.91117193,0.00018052,2]
[425965703,1782049846000,-2769.49731269,0.00017872,2]
[425965721,1782049894000,4317.66169511,0.0001,2]
[425965724,1782049975000,131367.81619592,0.00023288,120]
[425965725,1782049984000,427.88027398,0.0001,2]
[425965727,1782050199000,3780824.72526002,0.00023288,120]
[425965728,1782050258000,633.86141665,7.6e-05,2]
[425965731,1782050270000,-452.04527946,0.000118,5]
[425965730,1782050270000,-239.6492197,0.000118,5]
[425965732,1782050271000,-197.49437109,0.000118,5]
[425965733,1782050272000,-272.54731374,0.000118,5]
[425965734,1782050273000,-302.46804711,0.000118,5]
[425965735,1782050274000,-152.0,0.000118,5]
[425965736,1782050275000,-772.16357969,0.000118,5]
[425965737,1782050276000,-152.0,0.000118,5]
[425965738,1782050277000,-423.20997246,0.000118,5]
[425965739,1782050281000,-336.88679517,0.000118,5]
[425965740,1782050282000,-306.25961643,0.000118,5]
[425965745,1782050454000,-3539.32856517,0.000118,5]
[425965746,1782050470000,-1706.00720962,0.00012614,2]
[425965747,1782050487000,-1900.71655352,0.00012614,2]
[425965749,1782050504000,-3344.61922127,0.00012614,2]
[425965750,1782050521000,-1655.38077873,0.00012614,2]
[425965751,1782050537000,-3589.95499606,0.00012741,2]
[425965752,1782050554000,-514.93746891,0.00012614,2]
[425965778,1782051032000,-1997.63169329,0.00011757,2]
[425965805,1782051039000,-500.0,0.00016578,2]
[425965804,1782051039000,-500.0,0.00016578,2]
[425965803,1782051039000,-152.35851985,0.00016578,2]
[425965801,1782051039000,-1530.45074625,0.00015191,2]
[425965799,1782051039000,-500.0,0.00015001,2]
[425965802,1782051039000,-778.4415515,0.00015798,2]
[425965800,1782051039000,-24012.59574105,0.00015191,2]
[425965798,1782051039000,-898.04894463,0.00015,2]
[425965796,1782051039000,-4919.3065749,0.00013914,2]
[425965794,1782051039000,-854.90094874,0.00011996,2]
[425965795,1782051039000,-869.17129939,0.00013,2]
[425965793,1782051039000,-514.93746891,0.00011876,2]
[425965792,1782051039000,-3002.36830671,0.00011757,2]
[425965809,1782051039000,-209.90953832,0.00016578,2]
[425965797,1782051039000,-337.8745744,0.00014057,2]
[425965808,1782051039000,-217.36559597,0.00016578,2]
[425965807,1782051039000,-500.0,0.00016578,2]
[425965806,1782051039000,-430.35986315,0.00016578,2]
[425965825,1782051039000,-31927.71183008,0.00017852,2]
[425965823,1782051039000,-20707.81305468,0.00017852,2]
[425965822,1782051039000,-217.57300638,0.00017851,2]
[425965816,1782051039000,-160.0,0.00017693,2]
[425965815,1782051039000,-160.0,0.00017693,2]
[425965818,1782051039000,-184.24284034,0.00017712,2]
[425965820,1782051039000,-751.97437457,0.00017831,2]
[425965824,1782051039000,-1972.9440825,0.00017852,2]
[425965819,1782051039000,-422.98558569,0.00017831,2]
[425965813,1782051039000,-445.0,0.00017143,2]
[425965810,1782051039000,-549.6434173,0.00016578,2]
[425965811,1782051039000,-500.0,0.00016578,2]
[425965814,1782051039000,-171.045459,0.00017506,2]
[425965812,1782051039000,-400.9824356,0.00016578,2]
[425965821,1782051039000,-1173.7850003,0.00017831,2]
[425965817,1782051039000,-16.24866642,0.00017712,2]
[425966324,1782051047000,-1780.09051058,0.00015698,2]
[425966323,1782051047000,-312.68044979,0.00015698,2]
[425966326,1782051093000,349.08091995,0.0001,2]
[425966342,1782051453000,-254.7799585,0.00010955,2]
[425966403,1782051829000,-239.6492197,0.00010311,2]
[425966404,1782051830000,-452.04527946,0.00010311,2]
[425966405,1782051831000,-272.54731374,0.00010311,2]
[425966406,1782051832000,-152.0,0.00010311,2]
[425966407,1782051833000,-302.46804711,0.00010311,2]
[425966408,1782051834000,-306.25961643,0.00010311,2]
[425966409,1782051835000,-423.20997246,0.00010311,2]
[425966410,1782051836000,-336.88679517,0.00010311,2]
[425966411,1782051837000,-152.0,0.00010208,2]
[425966413,1782051838000,-197.49437109,0.00010208,2]
[425966414,1782051839000,-772.16357969,0.00010208,2]
[425966416,1782051973000,-731.47097208,0.00010311,2]